[Event "1st FIDE Olympiad DIS 2023"]
[Site "Belgrade"]
[Date "2023.01.31"]
[Round "2.18"]
[White "Moldovanovic, Dragan"]
[Black "Bursuc, Mihai"]
[Result "1-0"]
[ECO "E92"]
[WhiteElo "2019"]
[BlackElo "1823"]
[Annotator "TA"]
[PlyCount "121"]
[EventDate "2023.01.30"]
[EventType "team-tourn"]
[EventCountry "SRB"]
[SourceTitle "playchess.com"]
[Source "ChessBase"]
[SourceQuality "1"]
[WhiteTeam "Serbia"]
[BlackTeam "Romania"]
[WhiteTeamCountry "SRB"]
[BlackTeamCountry "ROU"]
[TimeControl "40/5400+30:1800+30"]

{[%evp 15,121,36,45,23,38,37,42,39,51,4,50,17,62,50,69,47,50,26,67,28,13,-29,-11,-19,10,-109,-43,-47,42,0,0,0,0,-42,12,-354,88,71,132,0,61,72,66,17,23,-52,-38,-61,-54,-67,0,-20,-8,-51,-43,-43,-20,-9,-18,-16,-11,-14,256,173,166,160,169,145,154,143,214,210,312,306,314,309,275,153,152,31,36,25,382,377,122,382,490,493,459,424,412,400,460,445,473,470,595,587,572,568,515,502,711,690,667,663,1748,629]} 1. d4 {[%emt 0:00:04]} Nf6 {[%emt 0:00:14]} 2. c4 {[%emt 0:00:14]} g6 {[%emt 0:00:11]} 3. Nc3 {[%emt 0:00:23]} Bg7 {[%emt 0:00:18]} 4. e4 {[%emt 0:00:37]} d6 {[%emt 0:00:39]} 5. Nf3 {[%emt 0:01:13]} O-O {[%emt 0:00:29]} 6. Be2 {[%emt 0:00:51]} e5 {[%emt 0:01:34]} 7. d5 {[%emt 0:02:21]} Ne8 {[%emt 0:03:08]} 8. O-O {[%emt 0:00:26]} a5 {[%emt 0:03:07]} 9. Ne1 {[%emt 0:00:45] E92: King's Indian: Classical: 6 Be2 e5: 7 dxe5, 7 Be3 and Petrosian System without 7...Nbd7.} f5 {[%emt 0:00:24]} 10. Nd3 {[%emt 0:00:37] [#]} b6 $146 {[%emt 0:00:24]} ({Predecessor:} 10... f4 11. f3 g5 12. Bd2 Nf6 13. a3 h5 14. Nf2 Qe8 15. Nb5 Na6 16. Bxa5 b6 {0-1 Wiesemann,P-Van Orsouw,N Dortmund op-B 2001 (8)}) 11. f3 {[%emt 0:00:51] White is slightly better.} f4 {[%emt 0:00:21]} 12. b4 {[%emt 0:00:33]} (12. a3 $14) 12... Nd7 {[%emt 0:00:38]} (12... axb4 $11 13. Nxb4 Na6) 13. Bd2 {[%emt 0:03:34]} Rf7 {[%emt 0:03:24]} 14. a3 {[%emt 0:00:36]} g5 {[%emt 0:00:24]} 15. Qc2 {[%emt 0:08:32]} Bf8 {[%emt 0:05:26]} 16. Na4 {[%emt 0:04:50]} Ndf6 {[%emt 0:01:06]} 17. c5 {[%emt 0:04:04]} g4 {[%emt 0:03:27]} 18. Be1 {[%emt 0:03:19]} gxf3 {[%emt 0:00:45]} 19. Bxf3 {[%emt 0:00:27]} Bg4 {[%emt 0:00:57]} 20. Bf2 {[%emt 0:04:36]} (20. bxa5 $11 {remains equal.} Bxf3 21. gxf3 Rg7+ 22. Kh1 bxc5 23. Rg1) 20... Rg7 {[%emt 0:00:57]} (20... Bxf3 $17 21. gxf3 axb4 22. cxb6 Qc8) 21. Kh1 {[%emt 0:00:16][%cal Rc5b6]} Rb8 {[%emt 0:06:21]} (21... Bxf3 $15 22. gxf3 Qd7) 22. Rac1 {[%emt 0:11:59]} bxc5 {[%emt 0:07:52]} 23. bxc5 {[%emt 0:00:31]} Qd7 {[%emt 0:00:43]} 24. cxd6 {[%emt 0:11:31] [#] Threatens to win with Ba7.} Bxd6 {[%emt 0:00:22]} (24... Bxf3 $15 25. gxf3 Qh3) 25. Nac5 $2 {[%emt 0:00:40][%mdl 8192]} (25. Ba7 $11 {and White is okay.} Bxf3 26. Rxf3) 25... Qf7 $2 {[%emt 0:01:50]} ({Black should play} 25... Bxf3 $1 $19 26. gxf3 Qh3) 26. Qe2 {[%emt 0:09:02]} Qg6 {[%emt 0:05:05] [#]} (26... Qh5 $142) 27. Ne6 {[%emt 0:06:36]} (27. Be1 $1 $16) 27... Bxe6 {[%emt 0:01:55]} (27... Bxf3 $1 $11 28. Qxf3 Nxe4 29. Nxg7 Nxg7) 28. dxe6 $14 {[%emt 0:00:09][%cal Od3f4]} Ng4 {[%emt 0:06:39]} 29. a4 {[%emt 0:13:41]} (29. Ba7 $14 Ra8 30. Bg1) 29... Qxe6 {[%emt 0:03:11]} 30. Rc6 {[%emt 0:01:24]} (30. Be1 $11) 30... Nxf2+ $15 {[%emt 0:01:09]} 31. Nxf2 {[%emt 0:00:53] White is weak on the dark squares} Qb3 {[%emt 0:00:35]} 32. Ng4 {[%emt 0:02:37]} Qe6 {[%emt 0:03:19]} (32... Qxa4 $15 33. Nh6+ Kh8) 33. h3 {[%emt 0:01:34]} Rb4 {[%emt 0:02:27]} 34. Rd1 {[%emt 0:00:45]} Rxa4 {[%emt 0:02:04]} 35. Qb5 {[%emt 0:02:05]} Rb4 {[%emt 0:03:25]} 36. Qxa5 {[%emt 0:00:13]} Rb8 {[%emt 0:02:46]} 37. Qa7 {[%emt 0:01:55]} Rd8 {[%emt 0:01:39]} 38. Rd5 {[%emt 0:00:19][%cal Od5e5] Strongly threatening Rxe5!} Qg6 $2 {[%emt 0:04:20][%mdl 8192]} (38... Rg5 $11 {and Black stays safe.}) 39. Nxe5 {[%emt 0:01:49]} Qg3 {[%emt 0:00:27][%cal Od8a8]} 40. Ng4 $36 {[%emt 0:00:43][%mdl 2048] Nh6+ would be deadly. Keeping Black busy. Active counter play!} Qe1+ {[%emt 0:03:20]} 41. Qg1 {[%emt 0:30:13]} Qxg1+ {[%emt 0:35:09]} 42. Kxg1 {[%emt 0:00:07] Black must now prevent e5.} Ra8 {[%emt 0:01:23]} (42... Rg6 $16 {is a better defense.} 43. e5 Be7) 43. e5 $18 {[%emt 0:00:38]} Ra1+ {[%emt 0:01:46]} (43... Bf8 $142 44. Rd4 Re7 45. Bd5+ Kh8 46. Rxf4 Bg7) 44. Kh2 {[%emt 0:00:50]} Be7 {[%emt 0:00:56]} 45. Nf6+ {[%emt 0:01:53]} Kf8 {[%emt 0:00:48]} 46. Rd4 {[%emt 0:00:00]} (46. h4 $18) 46... Rf7 $16 {[%emt 0:00:00][%cal Re8f6]} 47. Nxe8 {[%emt 0:00:00]} ({But not} 47. Rxf4 $6 Nxf6 48. Rxc7 (48. exf6 Bd6 $14) 48... Re1 $14) (47. Nd7+ $16 Kg7 48. Rcc4 (48. Bh5 Bh4 $17)) 47... Bh4 $14 {[%emt 0:00:00][%csl Gf4][%cal Rh4g3]} 48. Rd1 {[%emt 0:00:00]} (48. Nxc7 $2 Bg3#) 48... Bg3+ $2 {[%emt 0:00:00][%mdl 8192]} (48... Rxd1 $1 $11 {and Black has nothing to worry.} 49. Bxd1 Kxe8) 49. Kg1 $18 {[%emt 0:00:00]} Rxd1+ {[%emt 0:00:00]} 50. Bxd1 {[%emt 0:00:00]} Re7 {[%emt 0:00:00]} 51. Nf6 {[%emt 0:00:00]} ({Less strong is} 51. Nxc7 Rxe5 52. Re6 Rc5 $18) 51... f3 {[%emt 0:00:00]} 52. Bxf3 {[%emt 0:00:00]} Bxe5 {[%emt 0:00:00]} 53. Ne4 {[%emt 0:00:00]} Kg7 {[%emt 0:00:00]} 54. Kf2 {[%emt 0:00:00] White is clearly winning.} Bd4+ {[%emt 0:00:00]} 55. Kg3 {[%emt 0:00:00]} h6 {[%emt 0:00:00]} 56. h4 {[%emt 0:00:00][%cal Bh3h4,Bh4h5][%mdl 32]} Rf7 {[%emt 0:00:00]} 57. h5 {[%emt 0:00:00]} Be3 {[%emt 0:00:00]} 58. Nc5 {[%emt 0:00:00]} Bf4+ {[%emt 0:00:00]} 59. Kg4 {[%emt 0:00:00] White wants to mate with Ne6+.} Bd6 {[%emt 0:00:00]} 60. Ne6+ {[%emt 0:00:00]} Kh8 {[%emt 0:00:00]} 61. Be4 {[%emt 0:00:00] Weighted Error Value: White=0.41/Black=0.52} 1-0

[Event "1st FIDE Olympiad DIS 2023"]
[Site "Belgrade"]
[Date "2023.01.31"]
[Round "2.19"]
[White "Kishan, Gangolli"]
[Black "Interian Rodriguez, Alberto D."]
[Result "1-0"]
[ECO "E73"]
[WhiteElo "2059"]
[BlackElo "2082"]
[Annotator "TA"]
[PlyCount "77"]
[EventDate "2023.01.30"]
[EventType "team-tourn"]
[EventCountry "SRB"]
[SourceTitle "playchess.com"]
[Source "ChessBase"]
[SourceQuality "1"]
[WhiteTeam "India"]
[BlackTeam "Cuba"]
[WhiteTeamCountry "IND"]
[BlackTeamCountry "CUB"]
[TimeControl "40/5400+30:1800+30"]

{[%evp 21,76,64,96,95,104,102,135,110,137,118,118,128,126,128,220,171,191,167,355,374,348,231,223,229,231,221,239,229,325,327,326,338,337,312,399,406,570,564,951,947,943,901,1198,1192,1193,1140,1163,964,1051,1030,1077,1068,1223,1189,29987,29988,29999]} 1. d4 {[%emt 0:00:20]} Nf6 {[%emt 0:00:04]} 2. c4 {[%emt 0:00:15]} g6 {[%emt 0:00:01]} 3. Nc3 {[%emt 0:00:18]} Bg7 {[%emt 0:00:02]} 4. e4 {[%emt 0:00:21]} d6 {[%emt 0:00:02]} 5. Be2 {[%emt 0:00:40]} O-O {[%emt 0:00:02]} 6. Bg5 {[%emt 0:00:26]} h6 {[%emt 0:02:41]} 7. Be3 {[%emt 0:00:51]} e5 {[%emt 0:00:46]} 8. d5 {[%emt 0:00:27]} Na6 {[%emt 0:01:08]} 9. g4 {[%emt 0:09:58]} Nc5 {[%emt 0:03:43]} 10. f3 {[%emt 0:00:33]} a5 {[%emt 0:00:36]} 11. Qd2 {[%emt 0:00:51]} Kh7 {[%emt 0:01:45]} 12. O-O-O {[%emt 0:05:14] E73: King's Indian: Averbakh Variation without 6...c5.} Bd7 {[%emt 0:05:56]} 13. h4 {[%emt 0:09:49] [#]} a4 $146 {[%emt 0:10:06]} ({Predecessor:} 13... h5 14. Nh3 hxg4 15. Ng5+ Kg8 16. fxg4 Nxg4 17. Bxc5 dxc5 18. Rdg1 f5 19. Kb1 Ra6 {1-0 Johansen,D (2510)-Chapman,M (2360) Australian Masters 1996 (9)}) 14. Nh3 {[%emt 0:09:02][%cal Oh4h5] White is clearly better.} Ra6 {[%emt 0:04:30]} 15. Rdg1 {[%emt 0:14:58][%cal Oh4h5]} h5 {[%emt 0:25:07]} 16. Nf2 {[%emt 0:03:39]} Qe7 {[%emt 0:03:04]} 17. Bg5 {[%emt 0:02:52]} Rb6 {[%emt 0:01:17]} (17... Qe8 $16) 18. Kc2 {[%emt 0:02:58]} a3 {[%emt 0:03:01]} 19. b3 {[%emt 0:02:18] gxh5 would be deadly.} ({Don't do} 19. bxa3 $6 Ra8 $14) 19... Ra8 $2 {[%emt 0:01:32] [#]} (19... Qe8 20. Qe3 Rh8) 20. gxh5 $18 {[%emt 0:01:15]} gxh5 {[%emt 0:01:45]} 21. Be3 {[%emt 0:00:49] And now Rg5 would win.} Rg8 {[%emt 0:10:20]} 22. Nd3 {[%emt 0:05:07]} Ra6 {[%emt 0:02:15]} 23. Bxc5 {[%emt 0:02:13]} dxc5 {[%emt 0:02:06]} 24. Qg5 {[%emt 0:00:44]} Bc8 {[%emt 0:06:08]} (24... Bh6 {was worth a try.} 25. Qxe5 Qxe5 26. Nxe5 Be3) 25. Qxe5 {[%emt 0:03:35]} (25. Nxe5 $2 Bh6 26. f4 Bxg5 $17) 25... Qxe5 {[%emt 0:03:16]} 26. Nxe5 {[%emt 0:00:23]} Rf8 {[%emt 0:00:57]} 27. Nd3 {[%emt 0:01:18][%cal Be5d3,Bd3f4,Bf4h3,Bh3g5,Bg5f7][%mdl 32]} b6 {[%emt 0:03:25]} 28. e5 {[%emt 0:00:59][%cal Be4e5,Be5e6][%mdl 32]} Ng8 {[%emt 0:01:09]} (28... Ne8 {keeps fighting.} 29. Ne4 Bh6 30. Ng5+ Kh8) 29. Rg5 {[%emt 0:01:57]} f6 {[%emt 0:00:56]} 30. Rxh5+ {[%emt 0:00:55]} Nh6 {[%emt 0:00:52]} 31. e6 {[%emt 0:01:06]} c6 {[%emt 0:01:29]} 32. Nf4 {[%emt 0:01:14]} f5 {[%emt 0:01:03]} 33. Rg1 {[%emt 0:02:03]} Be5 {[%emt 0:00:41]} 34. Nh3 {[%emt 0:01:14]} Bd4 {[%emt 0:01:24]} 35. Rg2 {[%emt 0:01:11]} Ra7 {[%emt 0:00:47]} 36. f4 {[%emt 0:01:47]} Rg7 37. Ng5+ {[%emt 0:02:38]} Kg6 {[%emt 0:02:05]} 38. Nf7+ {[%emt 0:00:00][%mdl 64] [#] Discovered Attack} ({Not} 38. dxc6 Ng4 $16) 38... Ng4 {[%emt 0:00:08]} 39. Rh6# {[%emt 0:00:22] White took control after the opening. Beautiful play by Kishan!   Weighted Error Value: White=0.18 (very precise) /Black=0.54} 1-0

[Event "1st FIDE Olympiad DIS 2023"]
[Site "Belgrade"]
[Date "2023.01.31"]
[Round "2.19"]
[White "Morariu, Ionel"]
[Black "Johansen, Torbjorn Reidar"]
[Result "0-1"]
[ECO "C58"]
[WhiteElo "1915"]
[BlackElo "1764"]
[Annotator "TA"]
[PlyCount "92"]
[EventDate "2023.01.30"]
[EventType "team-tourn"]
[EventCountry "SRB"]
[SourceTitle "playchess.com"]
[Source "ChessBase"]
[SourceQuality "1"]
[WhiteTeam "Romania"]
[BlackTeam "Norway"]
[WhiteTeamCountry "ROU"]
[BlackTeamCountry "NOR"]
[TimeControl "40/5400+30:1800+30"]

{[%evp 15,92,31,67,75,115,118,118,113,120,118,122,117,115,94,97,89,106,100,100,105,121,123,167,155,168,148,343,350,345,343,334,275,324,233,202,181,289,252,256,189,283,296,282,286,405,402,398,376,355,373,353,335,345,47,46,55,45,58,54,-6,-12,-1230,-1189,-29990,-29991,-29991,-2208,-29987,-592,-932,-901,-29989,-29990,-29990,-29991,-29991,-29992,-29992,-29991]} 1. e4 {[%emt 0:00:02]} e5 {[%emt 0:00:22]} 2. Nf3 {[%emt 0:00:00]} Nc6 {[%emt 0:00:00]} 3. Bc4 {[%emt 0:00:27]} Nf6 {[%emt 0:00:14]} 4. Ng5 {[%emt 0:00:14]} d5 {[%emt 0:00:14]} 5. exd5 {[%emt 0:00:53]} Na5 {[%emt 0:00:01]} 6. Bb5+ {[%emt 0:00:00]} c6 {[%emt 0:00:00]} 7. dxc6 {[%emt 0:00:08]} bxc6 {[%emt 0:00:01]} 8. Bd3 {[%emt 0:00:17] is cutting edge theory.} h6 {[%emt 0:02:16]} 9. Ne4 {[%emt 0:00:11] C58: Two Knights: 4 Ng5 d5 5 exd5 Na5 sidelines.} Be7 {[%emt 0:05:46]} 10. Nxf6+ {[%emt 0:00:25]} Bxf6 {[%emt 0:00:04]} 11. O-O {[%emt 0:00:14] White is better.} O-O {[%emt 0:00:27]} 12. Nc3 {[%emt 0:01:11]} Qc7 {[%emt 0:06:33] [#]} 13. Qe2 $146 {[%emt 0:01:46]} ({Predecessor:} 13. b3 Nb7 14. Ba3 Re8 15. Qf3 Qa5 16. Qxc6 Re6 17. Qa4 Qd8 18. Qe4 g6 19. Bc4 Re8 20. Qxg6+ {1-0 Stearman,J (2284)-Maser,T (1927) San Francisco TNM Fall op 2017 (4)}) 13... Nb7 {[%emt 0:03:20]} 14. Qe4 {[%emt 0:00:26][%csl Gd3][%cal Re4h7]} g6 {[%emt 0:00:12]} 15. Bc4 $36 {[%emt 0:01:17][%cal Bd3c4,Bc4b3,Bb3d5][%mdl 2080] White is really pushing.} Kg7 {[%emt 0:01:31]} 16. Qf3 {[%emt 0:00:25]} Nd6 {[%emt 0:01:26]} 17. Bb3 {[%emt 0:00:18]} Bb7 {[%emt 0:04:33]} 18. d3 {[%emt 0:00:12][%cal Oc1h6] Black must now prevent Bxh6+!} Nf5 {[%emt 0:04:41] [#]} 19. g4 $1 {[%emt 0:01:10]} c5 {[%emt 0:03:52]} 20. Bd5 {[%emt 0:01:30]} Nd6 {[%emt 0:07:47] [#]} (20... Nd4 $16 21. Bxh6+ {[%mdl 64] Deflection} Kxh6 22. Qxf6 Bxd5) 21. Bxh6+ $1 $18 {[%emt 0:00:34][%mdl 576] Deflection} Kxh6 {[%emt 0:00:21]} 22. Qxf6 {[%emt 0:02:07]} Ne8 {[%emt 0:06:40]} 23. Qf3 {[%emt 0:00:53]} Bxd5 {[%emt 0:02:35]} 24. Qxd5 {[%emt 0:01:21]} Rd8 {[%emt 0:00:23]} 25. Qg2 {[%emt 0:01:35]} f5 {[%emt 0:02:31]} (25... Kg7 $142 26. Qg3 Rb8) 26. g5+ {[%emt 0:00:58]} Kg7 {[%emt 0:00:07]} 27. f4 {[%emt 0:01:17]} Rh8 {[%emt 0:06:18]} (27... c4 $142 28. dxc4 Qxc4 29. fxe5 Rd4) 28. Rae1 {[%emt 0:03:23]} (28. Nd5 Qd6 $16) 28... Rh4 {[%emt 0:02:28] ...Rg4 would be deadly.} 29. h3 {[%emt 0:01:22] Dodges Rg4} (29. Rxe5 Rg4 $17) (29. Nd5 Qd6 $16) 29... exf4 {[%emt 0:07:09]} (29... Rxf4 $142 30. Rxf4 exf4) 30. Nd5 {[%emt 0:00:44]} Qd6 {[%emt 0:04:13]} 31. Qf2 {[%emt 0:02:31]} Rh5 {[%emt 0:05:07]} 32. Nxf4 {[%emt 0:00:49]} ({And not} 32. Re7+ Kf8 33. c4 (33. Nxf4 $2 {is the wrong capture.} Rxg5+ 34. Kh1 Kxe7 $19) 33... Rxg5+ 34. Kh1 Nf6 $11) 32... Rxg5+ {[%emt 0:00:26]} 33. Kh1 {[%emt 0:00:44]} Nc7 {[%emt 0:03:52][%cal Be8c7,Bc7d5,Bd5f4][%mdl 32]} 34. Qh4 {[%emt 0:03:55]} (34. Rg1 $18 Rxg1+ 35. Rxg1 (35. Kxg1 Kf7 $16) 35... Qc6+ 36. Kh2) 34... Qf6 $14 {[%emt 0:02:08][%cal Og5g1] Threatens to win with ...Rg1+!} 35. Kh2 {[%emt 0:03:07] Prevents Rg1. And now Rg1 would win.} Rh8 {[%emt 0:04:08]} 36. Qf2 {[%emt 0:00:16]} Qd6 {[%emt 0:00:51] aiming for ...Rg4.} 37. Rg1 {[%emt 0:07:47]} ({Better is} 37. d4 $14 cxd4 38. c3) 37... Nd5 $1 $11 {[%emt 0:06:52]} 38. Rgf1 $2 {[%emt 0:05:44][%mdl 8192]} (38. Rxg5 $11 Nxf4 39. Rg3) 38... Rg4 $19 {[%emt 0:01:37][%cal Rd5f4]} 39. Qxc5 {[%emt 0:00:42]} Nxf4 {[%emt 0:02:28][%csl Gf4][%cal Rh8h3]} 40. Qc3+ {[%emt 0:11:47]} Kh7 {[%emt 0:00:40]} (40... Kf7 $142 41. Qc4+ Nd5+ 42. Rf4 Rxf4 43. Kg2 Rxc4 44. dxc4 Nf4+ 45. Kg3 Rxh3+ 46. Kf2 Qd4+ 47. Re3 Qxe3+ 48. Kf1 Rh1#) 41. Re5 {[%emt 0:37:04]} Rg2+ {[%emt 0:35:40]} (41... Nxh3 $142 42. Rf3 Nf4 43. Ree3 Kg8+ 44. Qxh8+ Kxh8 45. Kh1 Qc6 46. c3 Rg3 47. d4 Rxf3 48. d5 Qc5 49. Re8+ Kg7 50. Re7+ Qxe7 51. Kh2 Qe2+ 52. Kh1 Qg2#) 42. Kh1 {[%emt 0:01:11] [#]} Rxc2 $3 {[%emt 0:00:00][%mdl 576] Deflection} 43. Qe1 {[%emt 0:00:00]} (43. Re7+ Qxe7) 43... Qc6+ {[%emt 0:00:00] Black mates.} 44. Re4 fxe4 {[%emt 0:00:00]} 45. Qh4+ {[%emt 0:02:46]} Nh5 {[%emt 0:00:00]} 46. dxe4 {[%emt 0:06:11]} Qxe4+ {[%emt 0:00:00] Magnificent play by Johansen!   Weighted Error Value: White=0.72/Black=0.42} 0-1

[Event "1st FIDE Olympiad DIS 2023"]
[Site "Belgrade"]
[Date "2023.01.31"]
[Round "2.20"]
[White "Batista Rivera, Idalis"]
[Black "Darpan, Inani"]
[Result "0-1"]
[ECO "B27"]
[WhiteElo "1775"]
[BlackElo "2016"]
[Annotator "TA"]
[PlyCount "161"]
[EventDate "2023.01.30"]
[EventType "team-tourn"]
[EventCountry "SRB"]
[SourceTitle "playchess.com"]
[Source "ChessBase"]
[SourceQuality "1"]
[WhiteTeam "Cuba"]
[BlackTeam "India"]
[WhiteTeamCountry "CUB"]
[BlackTeamCountry "IND"]
[TimeControl "40/5400+30:1800+30"]

{[%evp 9,160,0,8,1,14,14,3,5,13,-34,-8,-41,-35,-35,-37,-45,-26,-31,-31,-38,-32,-35,-25,-41,-42,-42,-44,-40,-25,-25,-26,-27,-28,-32,-26,-63,-69,-63,-27,-38,0,-41,-35,-67,-70,-77,-75,-83,-22,-88,-87,-106,-80,-89,-68,-68,-35,-41,-46,-39,-32,-72,-75,-83,-76,-76,-75,-88,-88,-99,-79,-94,-56,-75,-45,-69,-60,-53,-57,-65,-53,-56,-53,-71,-82,-67,0,-60,-71,-65,-57,-59,-50,-59,-51,-60,-60,-69,-69,-68,-55,-60,-28,-28,-28,-45,-19,-14,-8,-409,-209,-187,-96,-364,-139,-310,-292,-283,-272,-397,-364,-366,-249,-244,-87,-66,-18,-559,-557,-477,-450,-370,-28,-28,-28,-559,-479,-11987,-6520,-29974,-29975,-29975,-3610,-29972,-29974,-29977,-29978,-29978,-29979,-29980,-29981,-29981,-29982]} 1. e4 {[%emt 0:00:07]} c5 {[%emt 0:01:01]} 2. Nf3 {[%emt 0:00:56]} b6 {[%emt 0:00:26]} 3. c3 {[%emt 0:00:28]} Bb7 {[%emt 0:00:22]} 4. Bd3 {[%emt 0:00:15]} Nc6 {[%emt 0:08:33]} 5. O-O {[%emt 0:01:53]} e6 {[%emt 0:06:18]} 6. Bc2 {[%emt 0:01:33] [#] B27: Sicilian: 2 Nf3, unusual Black 2nd moves.} d5 $146 {[%emt 0:00:33]} ({Predecessor:} 6... Qc7 7. Re1 Nge7 8. d4 cxd4 9. cxd4 Ng6 10. Nc3 a6 11. a3 Na5 12. e5 d5 13. exd6 Bxd6 {0-1 Vazquez Gonzalez,J (1913)-Aaron,D (2263) Merida World Heritage op 2nd 2022 (6)}) 7. d4 {[%emt 0:01:51]} dxe4 {[%emt 0:01:11]} 8. Bxe4 {[%emt 0:00:12] The position is equal.} Nf6 {[%emt 0:00:10]} 9. Bc2 {[%emt 0:01:56]} (9. Bg5 $11) 9... cxd4 $15 {[%emt 0:03:25]} 10. Nxd4 {[%emt 0:04:19]} Nxd4 {[%emt 0:00:42]} 11. Qxd4 {[%emt 0:00:14]} Qxd4 {[%emt 0:00:19]} 12. cxd4 {[%emt 0:00:09]} a6 {[%emt 0:02:58]} 13. Nc3 {[%emt 0:10:07]} Be7 {[%emt 0:00:00]} 14. h3 {[%emt 0:03:10]} h6 {[%emt 0:00:38]} 15. Be3 {[%emt 0:01:35]} b5 {[%emt 0:00:48]} 16. a3 {[%emt 0:02:55]} O-O {[%emt 0:00:16]} 17. Bb3 {[%emt 0:03:29]} Rfd8 {[%emt 0:00:29]} 18. Rfd1 {[%emt 0:02:25]} Nd5 {[%emt 0:08:53]} 19. Nxd5 {[%emt 0:02:09]} Bxd5 {[%emt 0:00:11]} 20. Bxd5 {[%emt 0:08:30]} Rxd5 {[%emt 0:00:11]} 21. Rac1 {[%emt 0:00:34]} Bf6 {[%emt 0:01:16]} 22. Rd2 {[%emt 0:02:38]} Rad8 {[%emt 0:05:55]} 23. Rcd1 {[%emt 0:02:51]} Bg5 {[%emt 0:01:40]} 24. Kf1 {[%emt 0:03:49]} Bf6 {[%emt 0:30:05]} 25. Ke2 {[%emt 0:01:46]} g5 {[%emt 0:00:47]} 26. f3 {[%emt 0:05:13]} Kg7 {[%emt 0:01:24]} 27. Bf2 {[%emt 0:02:22]} Kg6 {[%emt 0:00:15]} 28. g4 {[%emt 0:04:45]} a5 {[%emt 0:05:19]} (28... h5 $17) 29. Be3 {[%emt 0:02:14]} (29. Rc1 $11 {keeps the balance.}) 29... a4 $17 {[%emt 0:01:52]} 30. Bf2 {[%emt 0:02:43]} R8d7 {[%emt 0:01:00]} 31. Be3 {[%emt 0:02:25]} Rc7 {[%emt 0:02:29][%cal Ob5b4]} 32. Rd3 {[%emt 0:03:08]} Rc2+ {[%emt 0:05:48]} (32... b4 $5) 33. R1d2 $1 {[%emt 0:00:49]} Rc1 {[%emt 0:01:48]} 34. Rd1 $1 {[%emt 0:00:06]} Rc8 {[%emt 0:00:34]} 35. R1d2 {[%emt 0:08:03]} Rcd8 {[%emt 0:00:30]} 36. Bf2 {[%emt 0:00:47]} h5 {[%emt 0:01:18]} 37. Bg1 {[%emt 0:02:22]} Bg7 {[%emt 0:01:45]} 38. Bf2 {[%emt 0:03:03]} f5 {[%emt 0:06:27]} 39. Bg1 Bf6 {[%emt 0:07:55]} 40. Bf2 {[%emt 0:06:57]} Rh8 {[%emt 0:00:34]} 41. Re3 {[%emt 0:35:08]} Kf7 {[%emt 0:01:40]} (41... Rxd4 $2 42. Rxd4 (42. Rxe6 Rxd2+ 43. Kxd2 Rd8+ 44. Kc2 hxg4 $11) 42... fxg4 43. fxg4 $18) 42. Rc3 {[%emt 0:00:45]} hxg4 {[%emt 0:07:22]} 43. hxg4 {[%emt 0:00:00]} Rh2 {[%emt 0:00:00]} 44. Rcd3 {[%emt 0:00:00]} f4 {[%emt 0:09:08]} 45. Kf1 {[%emt 0:00:00]} Kg6 {[%emt 0:06:00]} 46. Kg1 {[%emt 0:00:00]} Rh8 {[%emt 0:00:18] Black has more active pieces.} 47. Kf1 {[%emt 0:00:00]} Rh2 {[%emt 0:03:23]} 48. Kg1 $1 {[%emt 0:00:00]} Rh7 {[%emt 0:00:42]} 49. Kf1 {[%emt 0:00:00]} Rhd7 {[%emt 0:00:36]} 50. Ke2 $1 {[%emt 0:00:00]} Bg7 {[%emt 0:00:17]} 51. Bg1 {[%emt 0:00:00]} Rd8 {[%emt 0:01:33]} 52. Bf2 {[%emt 0:00:00]} Bf6 {[%emt 0:00:00]} 53. Bg1 {[%emt 0:00:00]} R8d6 {[%emt 0:00:00]} 54. Bf2 Bd8 {[%emt 0:00:32]} 55. b3 {[%emt 0:00:00]} Bb6 {[%emt 0:02:27]} 56. bxa4 {[%emt 0:00:00]} bxa4 {[%emt 0:00:09]} 57. Rb2 {[%emt 0:01:46]} Bxd4 {[%emt 0:00:51]} 58. Bxd4 {[%emt 0:01:23]} Rxd4 $15 {[%emt 0:00:07][%mdl 4096] Endgame KRR-KRR} 59. Rc3 {[%emt 0:01:05][%mdl 8192]} (59. Rxd4 $11 {and White is okay.} Rxd4 60. Rb6) 59... e5 {[%emt 0:00:56]} (59... Kf6 $142 60. Rbc2 Rd1) 60. Rbc2 {[%emt 0:00:52]} Kf6 {[%emt 0:00:00]} ({Black should try} 60... e4 $19 {Threatens to win with ...e3.} 61. fxe4 Rxe4+ 62. Kf2 Kf6) 61. Rc6 $2 {[%emt 0:01:11][%mdl 8192]} (61. Rc4 $17 {is the only way for White.}) 61... Ke6 $2 {[%emt 0:00:30]} (61... Rd2+ $19 62. Rxd2 Rxc6) 62. R6c3 $2 {[%emt 0:00:40]} (62. R6c4 $17 {might work better.}) 62... e4 $19 {[%emt 0:00:15]} 63. fxe4 {[%emt 0:00:31]} Rxe4+ {[%emt 0:00:05]} 64. Kf3 {[%emt 0:00:22]} (64. Kf1 {keeps fighting.}) 64... Red4 {[%emt 0:00:00] aiming for ...Rd3+.} 65. Ke2 {[%emt 0:01:02]} Ke5 {[%emt 0:00:22]} 66. Rc8 {[%emt 0:01:22]} Re4+ $2 {[%emt 0:01:16]} (66... Rd3 $19 {has better winning chances. Hoping for ...f3+.} 67. R2c5+ Ke6 68. Rxg5 Re3+ 69. Kf2 Rd2+ 70. Kf1 Rxa3 71. Re8+ Kd7) 67. Kf2 $17 {[%emt 0:00:17]} Kf6 {[%emt 0:00:35]} (67... Re3 $15 68. Re8+ Re6 69. Rc5+ Kd6 70. Rxe6+ Kxc5) 68. R8c4 $2 {[%emt 0:01:08][%mdl 8192]} (68. Rf8+ $11 Ke7 69. Rg8) 68... Rxc4 $19 {[%emt 0:00:00]} 69. Rxc4 {[%emt 0:00:07] KR-KR} Rd2+ {[%emt 0:00:13]} 70. Kf1 {[%emt 0:00:49] [#]} Ra2 $2 {[%emt 0:00:00]} (70... Ke5 $1 $19 {...Rd4 would be deadly.} 71. Rxa4 Ra2) 71. Rxa4 $11 {[%emt 0:00:08]} Ke5 {[%emt 0:00:19]} 72. Rb4 $2 {[%emt 0:02:23][%mdl 8192]} (72. Kg1 $11) 72... Rxa3 $19 {[%emt 0:00:14]} 73. Rb5+ {[%emt 0:00:33] [#]} (73. Kf2 $142 Rg3 74. Rb5+ Kf6 75. Rb6+ Ke7 76. Rb7+ Kd6 77. Rb6+ Kc5 78. Rb8) 73... Ke4 $1 {[%emt 0:00:00] ( -> ...Kf3)} 74. Rxg5 {[%emt 0:00:17]} Kf3 {[%emt 0:01:13][%cal Ra3a1]} 75. Ke1 {[%emt 0:00:41]} Ra1+ {[%emt 0:00:00]} 76. Kd2 {[%emt 0:00:06]} Kg2 {[%emt 0:00:32] Black mates.} 77. Rf5 {[%emt 0:00:29]} f3 {[%emt 0:00:14]} 78. g5 {[%emt 0:00:42]} f2 {[%emt 0:00:09]} 79. g6 {[%emt 0:00:10]} f1=Q {[%emt 0:00:29]} ({Stronger than} 79... f1=R 80. Rg5+ Kh3 81. g7 Rfd1+ 82. Kc2 Rac1+ 83. Kb2 Rb1+ 84. Kc3 Rdc1+ 85. Kd2 Rd1+ 86. Kc3 Rbc1+ 87. Kb4 Rb1+ 88. Kc3 $11) 80. Rxf1 {[%emt 0:00:07]} Kxf1 {[%emt 0:00:03]} ({Weaker is} 80... Rxf1 81. g7 Rf2+ 82. Ke1 Rf1+ 83. Kd2 Rf2+ 84. Ke1 Rf1+ 85. Ke2 Rf2+ 86. Ke1 $11) 81. Ke3 {[%emt 0:01:05] Weighted Error Value: White=0.22 (precise) /Black=0.17 (very precise)} 0-1